fUST/lending_fUST_20250725
["ID","MTS","AMOUNT","RATE_DAILY","PERIOD"]
[374661016,1753403467476,-460.0,0.00019915,2]
[374661017,1753403467486,-460.0,0.00019915,2]
[374661018,1753403467496,-460.0,0.00019915,2]
[374661019,1753403467505,-460.0,0.00019915,2]
[374661020,1753403467515,-460.0,0.00019915,2]
[374661021,1753403467525,-518.36,0.00019915,2]
[374661022,1753403467535,-600.0,0.00019916,2]
[374661023,1753403467544,-2000.0,0.00019916,2]
[374661024,1753403467554,-856.84837773,0.00019916,2]
[374661025,1753403467563,-2000.0,0.00019916,2]
[374661026,1753403467573,-151.0,0.00019917,2]
[374661027,1753403467583,-151.0,0.00019917,2]
[374661028,1753403467592,-1000.0,0.00019921,2]
[374661029,1753403467602,-1000.0,0.00019921,2]
[374661030,1753403467612,-1000.0,0.00019921,2]
[374661031,1753403467622,-508.53022819,0.00019921,2]
[374661032,1753403467632,-1000.0,0.00019921,2]
[374661033,1753403467642,-1000.0,0.00019921,2]
[374661034,1753403467651,-1000.0,0.00019921,2]
[374661035,1753403467661,-1000.0,0.00019921,2]
[374661036,1753403467671,-4836.40217312,0.00019934,2]
[374661037,1753403467680,-11412.3638234,0.00019958,2]
[374661038,1753403467689,-164.0,0.0002,3]
[374661039,1753403467698,-13000.0,0.0002,2]
[374661040,1753403467707,-151.0,0.0002,4]
[374661041,1753403467717,-151.0,0.0002,2]
[374661042,1753403467727,-151.0,0.0002,2]
[374661043,1753403467736,-151.0,0.0002,7]
[374661044,1753403467745,-465.49934,0.0002,2]
[374661045,1753403467755,-465.49934,0.0002,2]
[374661046,1753403467764,-1000.0,0.0002,2]
[374661047,1753403467774,-16000.0,0.0002,2]
[374661048,1753403467784,-35850.79696441,0.0002,2]
[374661049,1753403467793,-49374.43588962,0.0002,2]
[374661050,1753403467803,-21824.64398007,0.0002,2]
[374661051,1753403467812,-7000.0,0.0002,2]
[374661052,1753403467822,-4000.0,0.0002,4]
[374661053,1753403467832,-500.8961342,0.00020033,2]
[374661054,1753403467841,-500.0,0.00020033,2]
[374661055,1753403467852,-155.0,0.00020057,2]
[374661056,1753403467862,-155.0,0.00020065,2]
[374661057,1753403467872,-200.0,0.00020072,2]
[374661058,1753403467881,-460.0,0.00020073,2]
[374661059,1753403467891,-460.0,0.00020073,2]
[374661060,1753403467902,-151.0,0.00020073,2]
[374661061,1753403467911,-168.076005,0.00020073,2]
[374661062,1753403467921,-3591.58,0.00020073,2]
[374661063,1753403467931,-575.49148594,0.00020073,2]
[374661064,1753403467940,-541.22,0.00020073,2]
[374661065,1753403467950,-1056.91,0.00020073,2]
[374661066,1753403467959,-1275.35,0.00020073,2]
[374661067,1753403467969,-3097.91,0.00020073,2]
[374661068,1753403467979,-4502.54,0.00020073,2]
[374661069,1753403467988,-3669.95,0.00020073,2]
[374661070,1753403467998,-460.0,0.00020073,2]
[374661071,1753403468008,-460.0,0.00020076,2]
[374661072,1753403468019,-460.0,0.00020082,2]
[374661073,1753403468028,-151.0,0.00020082,2]
[374661074,1753403468038,-515.82,0.00020085,2]
[374661075,1753403468047,-460.0,0.00020085,2]
[374661076,1753403468056,-460.0,0.00020085,2]
[374661077,1753403468066,-497.93,0.00020085,2]
[374661078,1753403468076,-487.29,0.00020085,2]
[374661079,1753403468085,-460.0,0.00020085,2]
[374661080,1753403468095,-460.0,0.00020085,2]
[374661081,1753403468105,-713.91,0.00020085,2]
[374661082,1753403468114,-1821.3,0.00020085,2]
[374661083,1753403468123,-613.0,0.00020085,2]
[374661084,1753403468133,-669.88,0.00020085,2]
[374661085,1753403468143,-460.0,0.00020085,2]
[374661086,1753403468153,-914.47,0.00020085,2]
[374661087,1753403468162,-781.02,0.00020085,2]
[374661088,1753403468172,-460.0,0.00020085,2]
[374661089,1753403468182,-460.0,0.00020085,2]
[374661090,1753403468192,-312.71270978,0.00020085,2]
[374661091,1753403468202,-460.0,0.00020085,2]
[374661092,1753403468211,-721.46,0.00020085,2]
[374661093,1753403468221,-460.0,0.00020085,2]
[374661094,1753403468231,-505.29,0.00020085,2]
[374661095,1753403468240,-1720.45,0.00020085,2]
[374661096,1753403468250,-460.0,0.00020085,2]
[374661097,1753403468260,-151.0,0.00020085,2]
[374661098,1753403468274,-667.86,0.00020085,2]
[374661099,1753403468284,-464.16800289,0.00020085,2]
[374661100,1753403468293,-460.0,0.00020085,2]
[374661101,1753403468410,-460.0,0.00020085,2]
[374661102,1753403468420,-460.0,0.00020085,2]
[374661103,1753403468430,-460.0,0.00020085,2]
[374661104,1753403468440,-462.43499708,0.00020085,2]
[374661105,1753403468450,-151.0,0.00020085,2]
[374661106,1753403468460,-815.21,0.00020085,2]
[374661107,1753403468469,-460.0,0.00020085,2]
[374661108,1753403468479,-460.0,0.00020085,2]
[374661109,1753403468489,-460.0,0.00020085,2]
[374661110,1753403468500,-460.0,0.00020085,2]
[374661111,1753403468510,-658.4,0.00020085,2]
[374661112,1753403468520,-467.23,0.00020085,2]
[374661113,1753403468529,-181.65198,0.00020085,2]
[374661114,1753403468539,-181.65198,0.00020085,2]
[374661115,1753403468549,-460.0,0.00020085,2]
[374661116,1753403468558,-4836.40217312,0.00020141,2]
[374661117,1753403468567,-168.0,0.00020143,2]
[374661118,1753403468577,-914.31,0.00020152,2]
[374661119,1753403468586,-460.0,0.00020152,2]
[374661120,1753403468595,-2681.77,0.00020152,2]
[374661121,1753403468605,-829.03,0.00020152,2]
[374661122,1753403468615,-460.0,0.00020154,2]
[374661123,1753403468624,-671.32,0.00020154,2]
[374661124,1753403468634,-460.0,0.00020155,2]
[374661125,1753403468643,-460.0,0.00020155,2]
[374661126,1753403468654,-8001.42,0.00020155,2]
[374661127,1753403468664,-460.0,0.00020155,2]
[374661128,1753403468673,-3960.81,0.00020155,2]
[374661129,1753403468683,-460.0,0.00020155,2]
[374661130,1753403468693,-833.49,0.00020155,2]
[374661131,1753403468702,-870.13,0.00020155,2]
[374661132,1753403468712,-1140.91,0.00020155,2]
[374661133,1753403468722,-460.0,0.00020155,2]
[374661134,1753403468732,-3160.07,0.00020155,2]
[374661135,1753403468741,-3852.66,0.00020155,2]
[374661136,1753403468752,-1023.4,0.00020155,2]
[374661137,1753403468761,-460.0,0.00020155,2]
[374661138,1753403468772,-2667.14,0.00020155,2]
[374661139,1753403468782,-920.37,0.00020155,2]
[374661140,1753403468791,-460.0,0.00020156,2]
[374661141,1753403468801,-767.54,0.00020156,2]
[374661142,1753403468810,-460.0,0.00020156,2]
[374661143,1753403468820,-545.95259714,0.00020156,2]
[374661144,1753403468830,-701.77,0.00020156,2]
[374661145,1753403468840,-569.95,0.00020156,2]
[374661146,1753403468849,-374.98303447,0.00020156,2]
[374661147,1753403468859,-460.0,0.00020156,2]
[374661148,1753403468868,-963.68,0.00020156,2]
[374661149,1753403468877,-614.53,0.00020156,2]
[374661150,1753403468887,-460.0,0.00020156,2]
[374661151,1753403468896,-1011.84,0.00020156,2]
[374661152,1753403468906,-3080.4,0.00020156,2]
[374661153,1753403468916,-1436.23,0.00020156,2]
[374661154,1753403468926,-537.78527294,0.00020156,2]
[374661155,1753403468935,-460.0,0.00020156,2]
[374661156,1753403468945,-460.0,0.00020156,2]
[374661157,1753403468958,-724.3,0.00020156,2]
[374661158,1753403468967,-460.0,0.00020156,2]
[374661159,1753403468977,-460.0,0.00020156,2]
[374661160,1753403468987,-185.255526,0.00020156,2]
[374661161,1753403468997,-1192.38,0.00020156,2]
[374661162,1753403469006,-185.255526,0.00020156,2]
[374661163,1753403469019,-573.91,0.00020156,2]
[374661164,1753403469029,-1046.61,0.00020156,2]
[374661165,1753403469039,-460.0,0.00020156,2]
[374661166,1753403469048,-1132.12,0.00020156,2]
[374661167,1753403469060,-1506.06,0.00020156,2]
[374661168,1753403469069,-460.0,0.00020156,2]
[374661169,1753403469080,-174.135301,0.00020156,2]
[374661170,1753403469090,-460.0,0.00020156,2]
[374661171,1753403469099,-174.135301,0.00020156,2]
[374661172,1753403469109,-460.0,0.00020156,2]
[374661173,1753403469119,-460.0,0.00020156,2]
[374661174,1753403469129,-460.0,0.00020156,2]
[374661175,1753403469139,-460.0,0.00020159,2]
[374661176,1753403469150,-151.0,0.00020159,2]
[374661177,1753403469159,-460.0,0.00020159,2]
[374661178,1753403469170,-151.0,0.00020159,2]
[374661179,1753403469180,-757.41,0.00020159,2]
[374661180,1753403469190,-169.619213,0.00020159,2]
[374661181,1753403469199,-460.0,0.00020159,2]
[374661182,1753403469209,-460.0,0.00020159,2]
[374661183,1753403469218,-777.25,0.00020159,2]
[374661184,1753403469228,-464.58615465,0.00020159,2]
[374661185,1753403469239,-1547.17,0.00020159,2]
[374661186,1753403469249,-1507.8,0.00020159,2]
[374661187,1753403469258,-1157.67,0.00020159,2]
[374661188,1753403469272,-491.14,0.00020159,2]
[374661189,1753403469282,-481.62,0.00020159,2]
[374661190,1753403469291,-1071.58,0.00020159,2]
[374661191,1753403469301,-877.32,0.00020159,2]
[374661192,1753403469310,-572.88,0.00020159,2]
[374661193,1753403469321,-1264.56,0.00020159,2]
[374661194,1753403469331,-460.0,0.0002016,2]
[374661195,1753403469341,-610.19,0.0002016,2]
[374661196,1753403469350,-5845.77,0.0002016,2]
[374661197,1753403469362,-2552.59,0.0002016,2]
[374661198,1753403469372,-2511.43,0.0002016,2]
[374661199,1753403469383,-460.0,0.00020161,2]
[374661200,1753403469393,-369.30558187,0.00020161,2]
[374661201,1753403469403,-460.0,0.00020161,2]
[374661202,1753403469414,-460.0,0.00020161,2]
[374661203,1753403469423,-460.0,0.00020161,2]
[374661204,1753403469435,-460.0,0.00020161,2]
[374661205,1753403469445,-597.39,0.00020161,2]
[374661206,1753403469455,-944.16,0.00020161,2]
[374661207,1753403469465,-460.0,0.00020161,2]
[374661208,1753403469474,-1040.64,0.00020161,2]
[374661209,1753403469484,-606.81,0.00020161,2]
[374661210,1753403469494,-863.85,0.00020161,2]
[374661211,1753403469503,-460.0,0.00020161,2]
[374661212,1753403469514,-748.89,0.00020161,2]
[374661213,1753403469524,-460.0,0.00020161,2]
[374661214,1753403469534,-460.0,0.00020161,2]
[374661215,1753403469544,-814.22,0.00020161,2]
[374661216,1753403469553,-460.0,0.00020161,2]
[374661217,1753403469563,-1314.45,0.00020161,2]
[374661218,1753403469573,-1394.83,0.00020161,2]
[374661219,1753403469582,-460.0,0.00020161,2]
[374661220,1753403469592,-629.64,0.00020161,2]
[374661221,1753403469602,-1301.85,0.00020161,2]
[374661222,1753403469611,-762.27,0.00020161,2]
[374661223,1753403469621,-460.0,0.00020161,2]
[374661224,1753403469631,-654.44,0.00020161,2]
[374661225,1753403469641,-460.0,0.00020161,2]
[374661226,1753403469650,-611.33,0.00020161,2]
[374661227,1753403469660,-583.62,0.00020161,2]
[374661228,1753403469670,-696.94,0.00020161,2]
[374661229,1753403469680,-938.95,0.00020161,2]
[374661230,1753403469690,-584.1,0.00020161,2]
[374661231,1753403469700,-1418.18,0.00020161,2]
[374661232,1753403469710,-1188.07,0.00020161,2]
[374661233,1753403469720,-756.86,0.00020161,2]
[374661234,1753403469730,-2548.02,0.00020161,2]
[374661235,1753403469739,-568.95,0.00020185,2]
[374661236,1753403469749,-483.15777945,0.00020185,2]
[374661237,1753403469759,-460.0,0.00020185,2]
[374661238,1753403469769,-460.0,0.00020185,2]
[374661239,1753403469779,-460.0,0.00020185,2]
[374661240,1753403469790,-460.0,0.00020185,2]
[374661241,1753403469799,-460.0,0.00020185,2]
[374661242,1753403469809,-460.0,0.00020185,2]
[374661243,1753403469819,-460.0,0.00020185,2]
[374661244,1753403469828,-677.81,0.00020185,2]
[374661245,1753403469838,-460.0,0.00020185,2]
[374661246,1753403469848,-460.0,0.00020185,2]
[374661247,1753403469858,-151.0,0.00020187,2]
[374661248,1753403469868,-151.0,0.00020187,2]
[374661249,1753403469878,-151.0,0.00020187,2]
[374661250,1753403469887,-460.0,0.00020187,2]
[374661251,1753403469896,-162.339688,0.00020187,2]
[374661252,1753403469903,-162.339688,0.00020187,2]
[374661253,1753403469911,-151.0,0.00020187,2]
[374661254,1753403469921,-210.672722,0.00020187,2]
[374661255,1753403469931,-3025.54,0.00020188,2]
[374661256,1753403469940,-838.89,0.00020189,2]
[374661257,1753403469950,-460.0,0.00020189,2]
[374661258,1753403469959,-460.0,0.00020189,2]
[374661259,1753403469969,-460.0,0.00020189,2]
[374661260,1753403469979,-879.6,0.00020189,2]
[374661261,1753403469989,-460.0,0.00020189,2]
[374661262,1753403469999,-1019.32,0.00020189,2]
[374661263,1753403470008,-460.0,0.00020189,2]
[374661264,1753403470018,-460.0,0.00020189,2]
[374661265,1753403470029,-460.0,0.00020189,2]
[374661266,1753403470038,-460.0,0.00020189,2]
[374661267,1753403470048,-460.0,0.00020189,2]
[374661268,1753403470057,-518.36,0.00020189,2]
[374661269,1753403470067,-185.165355,0.00020191,2]
[374661270,1753403470077,-151.0,0.00020191,2]
[374661271,1753403470086,-156.906836,0.00020191,2]
[374661272,1753403470095,-156.906836,0.00020191,2]
[374661273,1753403470105,-402.712883,0.00020191,2]
[374661274,1753403470114,-402.712883,0.00020191,2]
[374661275,1753403470123,-508.0,0.00020191,2]
[374661276,1753403470133,-151.0,0.000202,3]
[374661277,1753403470142,-151.0,0.00020216,2]
[374661278,1753403470152,-151.0,0.00020216,2]
[374661279,1753403470161,-266.303106,0.00020216,2]
[374661280,1753403470171,-2000.0,0.00020216,2]
[374661281,1753403470181,-2000.0,0.00020216,2]
[374661282,1753403470191,-2000.0,0.00020216,2]
[374661283,1753403470201,-508.0,0.00020267,2]
[374661284,1753403470211,-508.0,0.0002027,2]
[374661285,1753403470220,-151.0,0.00020295,2]
[374661286,1753403470230,-151.0,0.000203,3]
[374661287,1753403470240,-6000.0,0.00020342,2]
[374661288,1753403470250,-460.0,0.00020347,2]
[374661289,1753403470260,-460.0,0.00020347,2]
[374661290,1753403470271,-151.0,0.00020347,2]
[374661291,1753403470281,-151.0,0.00020347,2]
[374661292,1753403470293,-151.0,0.00020347,2]
[374661293,1753403470303,-3591.58,0.00020347,2]
[374661294,1753403470312,-541.22,0.00020347,2]
[374661295,1753403470322,-1056.91,0.00020347,2]
[374661296,1753403470334,-1275.35,0.00020347,2]
[374661297,1753403470343,-3097.91,0.00020347,2]
[374661298,1753403470353,-4502.54,0.00020347,2]
[374661299,1753403470363,-3669.95,0.00020347,2]
[374661300,1753403470373,-460.0,0.00020347,2]
[374661301,1753403470383,-4836.40217312,0.00020348,3]
[374661302,1753403470393,-460.0,0.0002035,2]
[374661303,1753403470402,-508.0,0.00020354,2]
[374661304,1753403470412,-508.0,0.00020355,2]
[374661305,1753403470422,-460.0,0.00020356,2]
[374661306,1753403470431,-151.0,0.00020356,2]
[374661307,1753403470441,-151.0,0.00020356,2]
[374661308,1753403470451,-421.044757,0.00020356,2]
[374661309,1753403470462,-421.044757,0.00020356,2]
[374661310,1753403470472,-216.420812,0.00020356,2]
[374661311,1753403470482,-216.420812,0.00020356,2]
[374661312,1753403470493,-460.0,0.00020359,2]
[374661313,1753403470502,-460.0,0.00020359,2]
[374661314,1753403470511,-497.93,0.00020359,2]
[374661315,1753403470524,-487.29,0.00020359,2]
[374661316,1753403470534,-310.64981274,0.00020359,2]
[374661317,1753403470543,-460.0,0.00020359,2]
[374661318,1753403470553,-713.91,0.00020359,2]
[374661319,1753403470563,-1821.3,0.00020359,2]
[374661320,1753403470572,-613.0,0.00020359,2]
[374661321,1753403470582,-669.88,0.00020359,2]
[374661322,1753403470591,-460.0,0.00020359,2]
[374661323,1753403470601,-914.47,0.00020359,2]
[374661324,1753403470611,-781.02,0.00020359,2]
[374661325,1753403470621,-460.0,0.00020359,2]
[374661326,1753403470631,-151.0,0.00020359,2]
[374661327,1753403470641,-460.0,0.00020359,2]
[374661328,1753403470651,-460.0,0.00020359,2]
[374661329,1753403470661,-721.46,0.00020359,2]
[374661330,1753403470670,-460.0,0.00020359,2]
[374661331,1753403470680,-505.29,0.00020359,2]
[374661332,1753403470690,-1720.45,0.00020359,2]
[374661333,1753403470700,-460.0,0.00020359,2]
[374661334,1753403470715,-667.86,0.00020359,2]
[374661335,1753403470730,-460.0,0.00020359,2]
[374661336,1753403470740,-460.0,0.00020359,2]
[374661337,1753403470750,-815.21,0.00020359,2]
[374661338,1753403470759,-460.0,0.00020359,2]
[374661339,1753403470772,-460.0,0.00020359,2]
[374661340,1753403470781,-465.70400981,0.00020359,2]
[374661341,1753403470792,-460.0,0.00020359,2]
[374661342,1753403470802,-658.4,0.00020359,2]
[374661343,1753403470812,-467.23,0.00020359,2]
[374661344,1753403470822,-260.0,0.00020365,2]
[374661345,1753403470833,-2157.0,0.00020376,2]
[374661346,1753403470843,-970.613,0.00020376,2]
[374661347,1753403470853,-407.0,0.00020376,2]
[374661348,1753403470864,-421.197,0.00020376,2]
[374661349,1753403470873,-2000.0,0.00020416,2]
[374661350,1753403470883,-1612.01231273,0.00020416,2]
[374661351,1753403470893,-914.31,0.00020426,2]
[374661352,1753403470903,-460.0,0.00020426,2]
[374661353,1753403470912,-2681.77,0.00020426,2]
[374661354,1753403470922,-829.03,0.00020426,2]
[374661355,1753403470933,-460.0,0.00020428,2]
[374661356,1753403470943,-460.0,0.00020429,2]
[374661357,1753403471056,-460.0,0.00020429,2]
[374661358,1753403471066,-8001.42,0.00020429,2]
[374661359,1753403471075,-460.0,0.00020429,2]
[374661360,1753403471085,-3960.81,0.00020429,2]
[374661361,1753403471094,-460.0,0.00020429,2]
[374661362,1753403471104,-833.49,0.00020429,2]
[374661363,1753403471114,-870.13,0.00020429,2]
[374661364,1753403471124,-1140.91,0.00020429,2]
[374661365,1753403471134,-460.0,0.00020429,2]
[374661366,1753403471146,-3160.07,0.00020429,2]
[374661367,1753403471156,-3852.66,0.00020429,2]
[374661368,1753403471166,-1023.4,0.00020429,2]
[374661369,1753403471176,-460.0,0.00020429,2]
[374661370,1753403471186,-2667.14,0.00020429,2]
[374661371,1753403471196,-920.37,0.00020429,2]
[374661372,1753403471206,-460.0,0.0002043,2]
[374661373,1753403471216,-767.54,0.0002043,2]
[374661374,1753403471225,-160.14115605,0.0002043,2]
[374661375,1753403471235,-701.77,0.0002043,2]
[374661376,1753403471244,-569.95,0.0002043,2]
[374661377,1753403471254,-460.0,0.0002043,2]
[374661378,1753403471263,-963.68,0.0002043,2]
[374661379,1753403471276,-614.53,0.0002043,2]
[374661380,1753403471291,-460.0,0.0002043,2]
[374661381,1753403471301,-1011.84,0.0002043,2]
[374661382,1753403471311,-3080.4,0.0002043,2]
[374661383,1753403471326,-1436.23,0.0002043,2]
[374661384,1753403471336,-460.0,0.0002043,2]
[374661385,1753403471346,-460.0,0.0002043,2]
[374661386,1753403471356,-724.3,0.0002043,2]
[374661387,1753403471365,-460.0,0.0002043,2]
[374661388,1753403471376,-460.0,0.0002043,2]
[374661389,1753403471386,-1192.38,0.0002043,2]
[374661390,1753403471396,-573.91,0.0002043,2]
[374661391,1753403471405,-1046.61,0.0002043,2]
[374661392,1753403471415,-460.0,0.0002043,2]
[374661393,1753403471424,-1132.12,0.0002043,2]
[374661394,1753403471434,-1506.06,0.0002043,2]
[374661395,1753403471445,-460.0,0.0002043,2]
[374661396,1753403471454,-460.0,0.0002043,2]
[374661397,1753403471464,-460.0,0.0002043,2]
[374661398,1753403471473,-460.0,0.0002043,2]
[374661399,1753403471483,-460.0,0.0002043,2]
[374661400,1753403471492,-189.12620279,0.00020433,2]
[374661401,1753403471502,-460.0,0.00020433,2]
[374661402,1753403471512,-757.41,0.00020433,2]
[374661403,1753403471524,-151.0,0.00020433,2]
[374661404,1753403471533,-186.0,0.00020433,2]
[374661405,1753403471543,-460.0,0.00020433,2]
[374661406,1753403471552,-465.49934,0.00020433,2]
[374661407,1753403471561,-465.49934,0.00020433,2]
[374661408,1753403471571,-460.0,0.00020433,2]
[374661409,1753403471580,-777.25,0.00020433,2]
[374661410,1753403471590,-1547.17,0.00020433,2]
[374661411,1753403471600,-1507.8,0.00020433,2]
[374661412,1753403471610,-1157.67,0.00020433,2]
[374661413,1753403471619,-491.14,0.00020433,2]
[374661414,1753403471629,-481.62,0.00020433,2]
[374661415,1753403471639,-1071.58,0.00020433,2]
[374661416,1753403471649,-877.32,0.00020433,2]
[374661417,1753403471658,-572.88,0.00020433,2]
[374661418,1753403471668,-1264.56,0.00020433,2]
[374661419,1753403471677,-511.11460237,0.00020434,2]
[374661420,1753403471687,-610.19,0.00020434,2]
[374661421,1753403471696,-5845.77,0.00020434,2]
[374661422,1753403471707,-2552.59,0.00020434,2]
[374661423,1753403471716,-2511.43,0.00020434,2]
[374661424,1753403471726,-460.0,0.00020435,2]
[374661425,1753403471736,-460.0,0.00020435,2]
[374661426,1753403471746,-460.0,0.00020435,2]
[374661427,1753403471755,-460.0,0.00020435,2]
[374661428,1753403471765,-460.0,0.00020435,2]
[374661429,1753403471782,-597.39,0.00020435,2]
[374661430,1753403471791,-944.16,0.00020435,2]
[374661431,1753403471800,-460.0,0.00020435,2]
[374661432,1753403471810,-1040.64,0.00020435,2]
[374661433,1753403471820,-606.81,0.00020435,2]
[374661434,1753403471830,-863.85,0.00020435,2]
[374661435,1753403471840,-460.0,0.00020435,2]
[374661436,1753403471850,-748.89,0.00020435,2]
[374661437,1753403471859,-460.0,0.00020435,2]
[374661438,1753403471869,-460.0,0.00020435,2]
[374661439,1753403471879,-814.22,0.00020435,2]
[374661440,1753403471889,-289.79576107,0.00020435,2]
[374661441,1753403471898,-1314.45,0.00020435,2]
[374661442,1753403471908,-1394.83,0.00020435,2]
[374661443,1753403471918,-460.0,0.00020435,2]
[374661444,1753403471929,-629.64,0.00020435,2]
[374661445,1753403471940,-1301.85,0.00020435,2]
[374661446,1753403471949,-762.27,0.00020435,2]
[374661447,1753403471959,-460.0,0.00020435,2]
[374661448,1753403471968,-654.44,0.00020435,2]
[374661449,1753403471978,-372.32397195,0.00020435,2]
[374661450,1753403471988,-611.33,0.00020435,2]
[374661451,1753403471997,-583.62,0.00020435,2]
[374661452,1753403472007,-696.94,0.00020435,2]
[374661453,1753403472022,-938.95,0.00020435,2]
[374661454,1753403472032,-584.1,0.00020435,2]
[374661455,1753403472042,-1418.18,0.00020435,2]
[374661456,1753403472051,-1188.07,0.00020435,2]
[374661457,1753403472068,-756.86,0.00020435,2]
[374661458,1753403472077,-2548.02,0.00020435,2]
[374661459,1753403472087,-168.0,0.00020439,2]
[374661460,1753403472096,-508.0,0.00020444,2]
[374661461,1753403472105,-568.95,0.00020459,2]
[374661462,1753403472115,-460.0,0.00020459,2]
[374661463,1753403472124,-460.0,0.00020459,2]
[374661464,1753403472134,-460.0,0.00020459,2]
[374661465,1753403472144,-460.0,0.00020459,2]
[374661466,1753403472154,-460.0,0.00020459,2]
[374661467,1753403472163,-460.0,0.00020459,2]
[374661468,1753403472173,-460.0,0.00020459,2]
[374661469,1753403472182,-677.81,0.00020459,2]
[374661470,1753403472191,-460.0,0.00020459,2]
[374661471,1753403472201,-210.47379534,0.00020459,2]
[374661472,1753403472211,-460.0,0.00020461,2]
[374661473,1753403472221,-838.89,0.00020463,2]
[374661474,1753403472230,-297.9081147,0.00020463,2]
[374661475,1753403472282,-162.0918853,0.00020463,2]
[374661476,1753403472296,-460.0,0.00020463,2]
[374661477,1753403472305,-315.64707873,0.00020463,2]
[374661478,1753403472511,-460.0,0.00018238,2]
[374661479,1753403472526,-460.0,0.00018241,2]
[374661480,1753403472535,-460.0,0.00018241,2]
[374661481,1753403472544,-460.0,0.00018512,2]
[374661482,1753403472555,-460.0,0.00018782,2]
[374661483,1753403472565,-460.0,0.00019056,2]
[374661484,1753403472575,-460.0,0.00019263,2]
[374661485,1753403472584,-460.0,0.0001933,2]
[374661486,1753403472594,-848.09,0.00019537,2]
[374661487,1753403472603,-460.0,0.00019537,2]
[374661488,1753403472613,-848.09,0.00019811,2]
[374661489,1753403472622,-460.0,0.00019811,2]
[374661490,1753403472632,-848.09,0.00020085,2]
[374661491,1753403472642,-188.31749689,0.00020085,2]
[374661492,1753403472651,-460.0,0.00020159,2]
[374661493,1753403472661,-848.09,0.00020359,2]
[374661494,1753403472670,-460.0,0.00020433,2]
[374661495,1753403472680,-144.35292127,0.00020463,2]
[374661496,1753403472689,-150.01690881,0.00020463,2]
[374661497,1753403474053,-4.03233142,0.00020463,2]
[374661498,1753403474339,155.96121062,0.00018,2]
[374661499,1753403474365,4844.03878938,0.00018,2]
[374661500,1753403474499,460.0,0.00017999,2]
[374661501,1753403474592,-464.92657863,0.0001814,2]
[374661502,1753403474608,-460.0,0.00018237,2]
[374661503,1753403474622,-460.0,0.00018238,2]
[374661504,1753403474635,-460.0,0.00018238,2]
[374661505,1753403474651,-460.0,0.00018241,2]
[374661506,1753403474667,-460.0,0.00018441,2]
[374661507,1753403474684,-460.0,0.00018511,2]
[374661508,1753403474701,-460.0,0.00018512,2]
[374661509,1753403474718,-460.0,0.00018715,2]
[374661510,1753403474731,-460.0,0.00018785,2]
[374661511,1753403474744,-460.0,0.00018786,2]
[374661512,1753403474761,-460.0,0.00018786,2]
[374661513,1753403474780,-460.0,0.00018989,2]
[374661514,1753403474793,-460.0,0.0001906,2]
[374661515,1753403474808,-460.0,0.0001906,2]